Cogmind - Beta 16 @@@ ROGUE MODE // 2025.10.22 @ 20:25:15 Player: Savant Result: Destroyed by D-53 Grenadier with Mini Grenade Launcher Performance ------------- Evolutions (0) 0 Regions Visited (2) 400 Robots Destroyed (25) 125 Value Destroyed (612) 612 Prototype IDs (0) 0 Alien Tech Used (0) 0 Bonus (7) 7 TOTAL SCORE: 1144 Bonus ------- Follower Combat Kills 7 Cogmind --------- Core Integrity 0/250 Matter 288/300 Energy 160/160 System Corruption 0% Temperature Cool (76) Movement Treading (160) Location -10/Mines Parts ------- > --- POWER (1) -------- Light Nuclear Core > --- PROPULSION (2) --- Light Treads Light Treads > --- UTILITY (2) ------ Large Storage Unit Light Armor Plating > --- WEAPON (2) ------- Beam Cannon > --- INVENTORY (15) --- Ion Engine Light Treads Wheel Improved Heat Sink Structural Scanner Seismic Detector Transport Network Coupler Light Armor Plating Particle Gun Grenade Launcher Rocket Launcher Datajack Mining Laser Shock Trap Peak State ------------ > --- POWER ------------ Light Nuclear Core > --- PROPULSION ------- Light Treads Light Treads > --- UTILITY ---------- Large Storage Unit Light Armor Plating > --- WEAPON ----------- Particle Gun Light Assault Rifle > --- INVENTORY -------- Ion Engine Light Treads Wheel Improved Heat Sink Structural Scanner Seismic Detector Light Armor Plating Light Assault Rifle Mining Laser [Rating: 11] Favorites ----------- Power Ion Engine Engine Ion Engine Power Core Light Nuclear Core Propulsion Light Treads Treads Light Treads Utility Seismic Detector Device Seismic Detector Storage Large Storage Unit Protection Light Armor Plating Weapon Assault Rifle Energy Gun Particle Gun Energy Cannon Beam Cannon Ballistic Gun Assault Rifle Launcher Grenade Launcher Special Weapon Mining Laser Build | -11 -10 -10 ------- Run | Yrd Mat Min Slots Evolved . | . . . Power . | . . . Propulsion . | . . . Utility . | . . . Weapon . | . . . Parts Attached 26 | 8 13 5 Power 5 | 1 2 2 Engine 3 | 1 1 1 Core 2 | . 1 1 Reactor . | . . . Propulsion 3 | 2 . 1 Treads 3 | 2 . 1 Leg . | . . . Wheel . | . . . Hover . | . . . Flight . | . . . Utility 9 | 2 6 1 Device 3 | 1 2 . Storage 3 | 1 2 . Processor . | . . . Hackware . | . . . Protection 3 | . 2 1 Artifact . | . . . Weapon 9 | 3 5 1 Energy Gun 3 | 2 1 . Energy Cannon 1 | . 1 . Ballistic Gun 2 | 1 1 . Ballistic Cannon . | . . . Launcher 2 | . 1 1 Special Weapon 1 | . 1 . Impact Weapon . | . . . Slashing Weapon . | . . . Piercing Weapon . | . . . Special Melee Weapon . | . . . Unidentified Prototypes . | . . . Parts Lost 6 | . 2 4 Power 1 | . . 1 Propulsion 1 | . . 1 Utility 2 | . 1 1 Weapon 2 | . 1 1 Highest Loss Streak 2 | . 1 2 To Critical Strikes . | . . . Average Backups 10 | 3 9 14 Power . | . . . Propulsion 2 | 2 2 3 Utility 4 | . 3 5 Weapon 3 | . 2 4 Tool/Special . | . . . Unused Backups 13 | . 5 8 Power . | . . . Propulsion 5 | . 3 2 Utility 4 | . 1 3 Weapon 3 | . 1 2 Tool/Special 1 | . . 1 Average Slot Usage (%) 99 | . 99 99 Engine 9 | . 8 10 Core 4 | . 5 3 Treads 27 | . 27 28 Device 10 | . 11 7 Storage 14 | . 14 14 Protection 3 | . 2 6 Energy Gun 7 | . 11 . Energy Cannon 5 | . 1 14 Ballistic Gun 13 | . 13 12 Special Weapon 1 | . 1 . Peak Build Rating 11 | 7 11 11 Average Rating 8 | 5 8 8 On Entrance 5 | . 7 10 Avg Prop Armor Cover (%) . | . . . Naked Turns . | . . . Heaviest Build 34 | 13 34 34 Greatest Support 40 | 40 40 40 Greatest Overweight (x) 1 | . 1 . Average Overweight (x) . | . . . Largest Inventory Capacity 15 | 8 15 15 Average Capacity 11 | 6 10 15 Most Carried 15 | 6 15 15 Average Carried 10 | 3 9 14 Final Capacity 15 | 8 15 15 Final Carried 15 | 6 15 14 Class Distribution -------------------- 100% | Mutant Dominant Class ---------------- Mutant | -10/Materials Mutant | -10/Mines Resources | -11 -10 -10 ----------- Run | Yrd Mat Min Matter Collected 915 | 233 411 271 Remotely . | . . . Salvage Created 851 | 29 571 251 Parts 52 | 4 28 20 Haulers Intercepted 2 | . 2 . Recyclers Shooed . | . . . Parts Field Recycled . | . . . Retrieved Matter . | . . . Parts Self-Destructed . | . . . Prevented . | . . . Parts Restored . | . . . Kills | -11 -10 -10 ------- Run | Yrd Mat Min Combat Hostiles Destroyed 20 | . 10 10 Guns 11 | . 9 2 Cannons 2 | . . 2 AOE 7 | . 1 6 Classes Destroyed 8 | 1 5 2 Builder 1 | . . 1 Tunneler 2 | 1 . 1 Hauler 2 | . 2 . Recycler 1 | . 1 . Watcher 1 | . 1 . Swarmer 5 | . 3 2 Grunt 13 | . 7 6 Assembled 2 | . . 2 Best Kill Streak 4 | 1 2 4 Combat Bots Only 2 | . 2 2 Max Kills in Single Turn 3 | 1 1 3 Gunslinging . | . . . Exploded 2 | . 1 2 Melee . | . . . Uniques/NPCs Destroyed . | . . . Combat | -11 -10 -10 -------- Run | Yrd Mat Min Hostile Shots Fired 108 | . 63 45 Missed 23 | . 17 6 Hits 85 | . 46 39 Projectile 85 | . 46 39 AOE 16 | . . 16 Damage Taken 1475 | . 512 963 Core 251 | . 73 178 Absorbed by Shields . | . . . Regen/Repaired (Parts) 110 | . 110 . Core Remaining (%) 100 | 100 . . Volleys Fired 87 | 1 61 25 Largest 2 | 2 2 2 Hottest 100 | 60 100 80 Shots Fired 152 | 2 105 45 Gun 112 | 2 90 20 Cannon 26 | . 6 20 Launcher 5 | . . 5 Special 9 | . 9 . Kinetic 67 | 1 46 20 Thermal 63 | 1 42 20 Explosive 5 | . . 5 Electromagnetic 17 | . 17 . Robot Hit Streak 8 | 1 8 4 Robot Miss Streak 3 | . 3 3 Penetration Max . | . . . Secondary Targets 1 | . 1 . Max Gunslinging Chain 1 | . 1 . Shots Hit Robots 82 | 1 57 24 Core Hits 43 | 1 26 16 Critical Kills . | . . . Critical Parts Destroyed . | . . . Critical Strikes . | . . . Melee Attacks . | . . . Impact . | . . . Slashing . | . . . Piercing . | . . . Sneak Attacks . | . . . Combat Hostiles . | . . . Follow-up Attacks . | . . . Damage Inflicted 1589 | 12 762 815 Guns 784 | 12 642 130 Cannons 315 | . 71 244 Explosions 490 | . 49 441 Melee . | . . . Ramming . | . . . Kinetic 319 | . 189 130 Thermal 662 | 12 406 244 Explosive 441 | . . 441 Electromagnetic 167 | . 167 . Impact . | . . . Slashing . | . . . Piercing . | . . . Highest Corruption . | . . . Average Corruption . | . . . Corruption Purged . | . . . Corruption Blocked . | . . . Overload Shots . | . . . Overflow Damage . | . . . Projectiles . | . . . Explosions . | . . . Melee . | . . . Knockbacks . | . . . Impact . | . . . Kinetic . | . . . Secondary . | . . . Self-Inflicted Damage 30 | . . 30 Shots 1 | . . 1 Rammed . | . . . Targets Rammed . | . . . Kicked . | . . . Crushed . | . . . Highest Temperature 315 | 20 315 285 Average Temperature 83 | 15 82 85 Received Heat Transfer 270 | . 144 126 Siege Activations . | . . . Martial Activations . | . . . Shielding Activations . | . . . Robots Disrupted . | . . . Combat Hostiles . | . . . Robots Corrupted . | . . . Combat Hostiles . | . . . Parts Fried . | . . . Impact Corruptions . | . . . Robots Melted . | . . . Combat Hostiles . | . . . Parts Melted 1 | . 1 . Heat Transferred 1494 | 25 951 518 Parts Sabotaged . | . . . Parts Stolen . | . . . Parts Stripped . | . . . Power Chain Reactions 1 | . 1 . Alert | -11 -10 -10 ------- Run | Yrd Mat Min Maximum Alert Level . | . . . Low Security (%) 100 | 100 100 100 Level 1 . | . . . Level 2 . | . . . Level 3 . | . . . Level 4 . | . . . Level 5 . | . . . High Security . | . . . Max Security . | . . . Peak Influence 127 | 5 127 126 Initial 5 | . . 5 Average 30 | . 34 25 Influence Increases 694 | 5 381 308 Destroy 0b10 Robot/C 380 | . 200 180 Destroy 0b10 Robot/NC 35 | 5 20 10 Destroy Leader 76 | . 36 40 Allied During Kill 16 | . . 16 Successful Hack 25 | . 25 . Select Force Hacks 30 | . 30 . Disable Machine 15 | . 15 . Destroy Structure 42 | . 10 32 Lose Combat Pursuer 75 | . 45 30 Influence Decreases 660 | 5 367 288 Entered New Map 9 | . . 9 Time Decay 541 | 5 357 179 Lost Part 50 | . 10 40 Lost Ally 60 | . . 60 Squads Dispatched 1 | . 1 . Investigation 1 | . 1 . Extermination . | . . . Reinforcement . | . . . Assault . | . . . Garrison . | . . . Intercept . | . . . Searches Triggered . | . . . Construction Impeded . | . . . Haulers Reinforced . | . . . Active Scanning Responses . | . . . Cargo Convoy Interrupts . | . . . Stealth | -11 -10 -10 --------- Run | Yrd Mat Min Distress Signals 3 | . 3 . Communications Jammed . | . . . Distress Signals . | . . . Times Spotted 35 | . 24 11 Peak Tracking Total 5 | . 5 2 Tactical Retreats 3 | . 1 2 Traps | -11 -10 -10 ------- Run | Yrd Mat Min Traps Triggered 2 | . 2 . Indirectly . | . . . Trap Hack Attempts . | . . . Triggered . | . . . Disarmed . | . . . Reprogrammed . | . . . Reused . | . . . Traps Extracted . | . . . Installed 1 | . . 1 Triggered . | . . . Most Traps Carried 1 | . . 1 Machines | -11 -10 -10 ---------- Run | Yrd Mat Min Machines Disabled 1 | . 1 . Max in Single Turn 1 | . 1 . Machines Repaired . | . . . Machines Dismantled . | . . . Machines Sabotaged . | . . . Overloaded Fab Kills . | . . . Hacking | -11 -10 -10 --------- Run | Yrd Mat Min Machines Accessed 8 | . 8 . Terminals 6 | . 6 . Fabricators . | . . . Repair Stations 1 | . 1 . Recycling Units 1 | . 1 . Scanalyzers . | . . . Garrison Access . | . . . Total Hacks 25 | . 25 . Successful 17 | . 17 . Failed 8 | . 8 . Catastrophic 1 | . 1 . Database Lockouts . | . . . Manual 17 | . 17 . Terminals 19 | . 19 . Fabricators . | . . . Repair Stations 5 | . 5 . Recycling Units 1 | . 1 . Scanalyzers . | . . . Garrison Access . | . . . Terminal Hacks 3 | . 3 . Part Schematic 1 | . 1 . Locate Traps 1 | . 1 . Zone Layout 1 | . 1 . Fabricator Hacks . | . . . Repair Station Hacks 4 | . 4 . Scan Component 2 | . 2 . Repair 2 | . 2 . Recycling Unit Hacks . | . . . Scanalyzer . | . . . Garrison Access Hacks . | . . . Unauthorized Hacks 10 | . 10 . Terminals 9 | . 9 . Track 2 | . 2 . Botnet 1 | . 1 . Operators 1 | . 1 . Skim 5 | . 5 . Fabricators . | . . . Repair Stations . | . . . Recycling Units 1 | . 1 . Tunnel 1 | . 1 . Scanalyzers . | . . . Garrison Access . | . . . Data Cores Recovered . | . . . Used . | . . . Hacking Detections 6 | . 6 . Full Trace Events . | . . . Feedback Events . | . . . Feedback Blocked . | . . . Robot Schematics Acquired . | . . . Robots Built . | . . . Authchips . | . . . Time . | . . . Total Robot Build Rating . | . . . Part Schematics Acquired 1 | . 1 . Parts Built . | . . . Authchips . | . . . Time . | . . . Total Part Build Rating . | . . . Part Studies Acquired . | . . . Parts Repaired 2 | . 2 . Time 52 | . 52 . Parts Recycled . | . . . Recycled Matter . | . . . Retrieved Matter . | . . . Retrieved Components . | . . . Parts Scanalyzed . | . . . Part Schematics Acquired . | . . . Parts Damaged . | . . . Bothacking | -11 -10 -10 ------------ Run | Yrd Mat Min Used RIF Installer . | . . . Robots Hacked . | . . . Non-combat . | . . . Combat . | . . . Robot Hacks Applied . | . . . Relay Couplers Released . | . . . Fabnet Peak Effective % . | . . . Robots Rewired . | . . . Allies Hacked . | . . . Hacks Repelled . | . . . Allies | -11 -10 -10 -------- Run | Yrd Mat Min Total Allies 3 | . . 3 Largest Group 3 | . . 3 Highest-Rated Group 40 | . . 40 Highest-Rated Ally 16 | . . 16 Total Orders . | . . . Ally Attacks 6 | . . 6 Total Damage 62 | . . 62 Kills 1 | . . 1 Allies Corrupted . | . . . Allies Melted . | . . . Intel | -11 -10 -10 ------- Run | Yrd Mat Min Active Infowar (turns) 1776 | 43 1301 432 Structural 19 | . 19 . Seismic 1757 | 43 1282 432 Robot Analysis Total . | . . . Derelict Logs Recovered 1 | . . 1 Drone Launches . | . . . Drone Recoveries . | . . . Exploration | -11 -10 -10 ------------- Run | Yrd Mat Min Turns Passed 2440 | 121 1569 750 Spaces Moved 1165 | 64 743 358 Core 3 | 3 . . Treads 1162 | 61 743 358 Legs . | . . . Wheels . | . . . Hover . | . . . Flight . | . . . Fastest Speed 50 | 50 160 160 Average Speed 161 | 154 162 160 Slowest Speed 240 | 160 240 160 Overloaded Moves . | . . . Propulsion Burnouts . | . . . Robots Hopped . | . . . Potential Cave-ins . | . . . Cave-ins Triggered . | . . . Exploration Rate (%) 52 | 4 89 65 Regions Visited 2 Branch Regions 1 Pre-discovered Areas 2 | . 1 1 Known Exits Taken . | . . . Unknown Exits Taken 2 | 1 1 . Scrap Searched . | . . . Spaces Dug 22 | . 6 16 Terrain Destroyed 43 | . 10 33 Melee . | . . . Projectile 9 | . 9 . AOE 34 | . 1 33 Terrain Rammed . | . . . Walls Destroyed . | . . . Machines Disabled . | . . . Actions | -11 -10 -10 --------- Run | Yrd Mat Min Total 1548 | 80 981 487 Wait 194 | 1 117 76 Move 1163 | 63 742 358 Hop . | . . . Pick Up 28 | 5 17 6 Fast Attach 11 | 8 3 . Attach 5 | . 2 3 Detach 2 | 1 1 . Swap 42 | 1 27 14 Drop 15 | . 11 4 Fire 87 | 1 61 25 Melee . | . . . Ram . | . . . Kick . | . . . Crush . | . . . Escape Stasis . | . . . Rewire . | . . . Trap 1 | . . 1 Miscellaneous . | . . . Route ------- -11/Scrapyard -10/Materials (discovered 6 exits: *Mat x3 / [*Min x2] / *Sub) -10/Mines (discovered 3 exits: *Mat x2 / *Sub) History --------- Turn | Location | Event 3 | -11/Scrapyard | Discovered new exit (range 16) 122 | -11/Scrapyard | Entered Materials 271 | -10/Materials | Discovered new exit (range 15) 313 | -10/Materials | Build established: Mutant 415 | -10/Materials | Discovered new exit (range 14) 1170 | -10/Materials | Discovered new exit (range 14) 1213 | -10/Materials | Learned Storage emergency access door positions 1214 | -10/Materials | Repaired Lgt. Treads? 1275 | -10/Materials | Repaired Lgt. Treads 1285 | -10/Materials | Learned location of 2 exits from Mines 1345 | -10/Materials | Identified exit to Materials 1395 | -10/Materials | Identified exit to Subcaves 1395 | -10/Materials | Learned location of 1 exit from Materials 1437 | -10/Materials | Learned 2 Storage zone layouts 1522 | -10/Materials | Learned 4 Recycling zone layouts 1561 | -10/Materials | Learned 4 Recycling zone layouts 1669 | -10/Materials | Learned Storage emergency access door positions 1691 | -10/Materials | Entered Mines 1728 | -10/Mines | Assembled infested the area 1733 | -10/Mines | Assisted by a Guerilla fighting off Assembled 1818 | -10/Mines | Received a Rocket Launcher from a helpful Derelict 1876 | -10/Mines | Discovered exit to Materials (range 5) 2094 | -10/Mines | Learned location of Mines (-9) 2115 | -10/Mines | Found a hidden stash of uninstalled traps 2178 | -10/Mines | Assisted by bots powering up and referring to "LRC-V3" 2428 | -10/Mines | Core integrity fell below 50% 2440 | -10/Mines | Core integrity fell below 20% 2441 | -10/Mines | Destroyed by D-53 Grenadier with Mini Grenade Launcher Last Messages --------------- 02397_ K-01 Serf collects debris. 02398_ U-05 Engineer lays Concrete. 02404_ K-01 Serf collects debris. 02404_ U-05 Engineer lays Concrete. 02409_ K-01 Serf collects debris. 02411_ U-05 Engineer lays Concrete. 02415_ K-01 Serf collects debris. 02418_ U-05 Engineer lays Concrete. 02419_ K-01 Serf collects debris. 02421_ U-05 Engineer lays Concrete. 02424_ T-07 Excavator destroyed. 02426_ Trooper 1b destroyed. 02426_ Trooper 1a destroyed. 02430_ R-06 Scavenger destroyed. 02432_ Lgt. Treads destroyed. 02433_ K-01 Serf collects debris. 02437_ Assault Rifle destroyed. 02438_ K-01 Serf collects debris. 02440_ The unstable cave ceiling collapses. 02441_ K-01 Serf collects debris. Map ----- +----------------------------------------------------+ | ?????# #?????????????????????????# #????????????? | | ?????# #????????????????????????? #????????????? | | ?????# #????###########??????????###????????????? | | ?????# ###### #?????????????????????????? | | ?????# #?????????????????????????? | | ?????# [ !% #?????????????????????????? | | ?????######%# "" #?????????????????????????? | | ??????????# # < """ #?????????????????????????? | | ??????????# # #?????????????????????????? | | ??????????# # #?????????????????????????? | | ??????????# ###########?????????????????????????? | | ?????###### #???????????????????????????????????? | | ????## ##??????????????????????????????????? | | ???## ##?????????????????????????????????? | | ???# ##??????????????####?###??????????? | | ???# ##????????????## ## ##?????????? | | ???# #???????????## ##????????? | | ???## #??????###### #????????? | | ????# ##???#### #????????? | | ????# ###???## ##????????? | | ????# ###????## ######?????????? | | ????## ##?????## ##??????????????? | | ?????# ##????## # ##???????????????? | | ????## ###### ##????????????????? | | ???## ##?????????????????? | | ???# [ = @ #??????????????????? | | ???# !=! ##### ] ######??????????????? | | ???# [ *##?## k = ### ##?????????????? | | ???## % ##?# d #### #?????????????? | | ????# [=[ #??# = d[ #?????????????? | | ????# ##??# |%* ##????????###?? | | ???## ##???# ! ###???? "%?? | | ???# #????## #### "?? | | ???# ##????#### # #????? | | ???## ##??????# ## #????? | | ????#### ##?????# ## #### ###???####?? | | ???????## #?????# ## ##??## ##????## ##? | | ????????# #?????# ## #????# ######## #? | | ????????# ##?????# ### #????# ### ## | | ????????# #??????# #?## #????# ## | | ????????# #??????# ##?# #????# ## ### | | ????????# #??????# ### #????# #?# | | ????????# #??????# ## #????# # #?# | | ????????# ######## ## #????########### ##?# | | ????????# < # #??????????????####??# | | ????????############ #????????????????????? | | ???????????????????## #????????????????????? | | ????????????????????########????????????????????? | | ????????????????????????????????????????????????? | | | +----------------------------------------------------+ Best States ------------- Heat Dissipation 39 Energy Generation 14 Energy Capacity 250 Matter Stores 300 Matter Capacity 300 Sight Range 16 Terrain Scan Density 10 Armor Coverage 150 Evasion (%) 40 Recoil Reduction 2 Item Schematics ----------------- Huge Storage Unit | -10/Materials | Hacked Robot Schematics ------------------ None Fabricated ------------ Nothing Repaired ---------- Lgt. Treads | 47% | -10/Materials Lgt. Treads | 74% | -10/Materials Studied --------- None Alien Tech Used ----------------- None Achievements -------------- DATA ERROR: Steam Global Achievement% Organ Harvest There's More Where That Came From Challenges ------------ None Game ------ Seed GravityZhirovWheel Manual? 0 Play Time 00:25:41 Cumulative 958.3 hours Start 2025.10.22 @ 20:01:19 End 2025.10.22 @ 20:25:15 Sessions 1 Manual Loads 0 Difficulty Rogue Special Mode None Game No. 180 Rogue 180 Adventurer 0 Explorer 0 Win Type - Total 54 Types 23/5/9/1/3/1/6/3/2/1 Lore% 90 Gallery% 91 Achievement% 50 Wizard Run 0 Options --------- Layout 0 ASCII 0 Keyboard 0 Movement Numpad Keybinds 0 Fullscreen 1 Font 18/SmallcapsGlow Map View 76x50 Zoom Use 0% Tactical HUD 1 Map Filters NONE Filters NONE Steam 1 RUN: 2e222067-082f-42e1-9a28-3c208c72163c